bitfinex-derivatives/quotes_BTCF0:USTF0_20250608
["timestamp","ask_amount","ask_price","bid_price","bid_amount"]
[1749406036317,1.80922687,106140.0,106130.0,0.79951718]
[1749406036616,1.80922687,106140.0,106130.0,0.36827718]
[1749406036817,1.80922687,106140.0,106130.0,0.79947718]
[1749406039113,1.90998687,106140.0,106130.0,0.79947718]
[1749406039812,1.90998687,106140.0,106130.0,0.37232596]
[1749406040114,1.90998687,106140.0,106130.0,0.80336596]
[1749406040419,1.90998687,106140.0,106130.0,0.71522702]
[1749406041418,1.90998687,106140.0,106130.0,0.28418702]
[1749406041619,1.90998687,106140.0,106130.0,0.71514702]
[1749406042511,1.90998687,106140.0,106130.0,0.28418702]
[1749406042708,1.90998687,106140.0,106130.0,0.71506702]
[1749406043511,1.90998687,106140.0,106130.0,0.28418702]
[1749406044321,1.40998687,106140.0,106130.0,0.71498702]
[1749406044613,1.90998687,106140.0,106130.0,0.71498702]
[1749406044815,1.90998687,106140.0,106130.0,0.28418702]
[1749406047920,1.54918687,106140.0,106130.0,0.28418702]
[1749406048119,2.27078687,106140.0,106130.0,0.28418702]
[1749406048823,1.54918687,106140.0,106130.0,0.28418702]
[1749406049022,2.27078687,106140.0,106130.0,0.28418702]
[1749406050722,1.91054441,106140.0,106130.0,0.28418702]
[1749406050920,2.27078687,106140.0,106130.0,0.28418702]
[1749406065540,2.27078687,106140.0,106130.0,0.07836115]
[1749406066133,1.54918687,106140.0,106130.0,0.07836115]
[1749406066349,2.27078687,106140.0,106130.0,0.07836115]
[1749406070551,2.27078687,106140.0,106130.0,0.28418702]
[1749406071742,2.27078687,106140.0,106130.0,0.07836115]
[1749406074851,1.54918687,106140.0,106130.0,0.07836115]
[1749406075052,2.27078687,106140.0,106130.0,0.07836115]
[1749406076155,2.17002687,106140.0,106130.0,0.07836115]
[1749406076455,2.70054687,106140.0,106130.0,0.07836115]
[1749406076652,2.17002687,106140.0,106130.0,0.07836115]
[1749406076952,2.26998687,106140.0,106130.0,0.07836115]
[1749406077853,1.54838687,106140.0,106130.0,0.07836115]
[1749406078152,2.26998687,106140.0,106130.0,0.07836115]
[1749406079953,2.26998687,106140.0,106130.0,0.28418702]
[1749406081057,1.54838687,106140.0,106130.0,0.28418702]
[1749406081257,2.26998687,106140.0,106130.0,0.28418702]
[1749406086360,1.54838687,106140.0,106130.0,0.28418702]
[1749406086562,2.26998687,106140.0,106130.0,0.28418702]
[1749406090665,2.08986564,106140.0,106130.0,0.28418702]
[1749406092357,1.36826564,106140.0,106130.0,0.28418702]
[1749406092563,1.31110441,106140.0,106130.0,0.46430825]
[1749406092750,1.49122564,106140.0,106130.0,0.6377407]
[1749406092955,1.19096213,106140.0,106130.0,0.6377407]
[1749406093155,1.19116213,106140.0,106130.0,0.6377407]
[1749406093665,1.19016213,106140.0,106130.0,0.6377407]
[1749406095465,1.19016213,106140.0,106130.0,0.84456657]
[1749406097668,1.19016213,106140.0,106130.0,0.6387407]
[1749406100666,1.19016213,106140.0,106130.0,0.93270551]
[1749406102465,0.46856213,106140.0,106130.0,0.93270551]
[1749406102768,0.82936213,106140.0,106130.0,0.93270551]
[1749406103859,1.12962564,106140.0,106130.0,0.93270551]
[1749406104056,0.84958441,106140.0,106130.0,0.93270551]
[1749406104262,0.82936213,106140.0,106130.0,0.93270551]
[1749406104468,0.82916213,106140.0,106130.0,0.93270551]
[1749406104768,0.82936213,106140.0,106130.0,0.93270551]
[1749406108665,0.46856213,106140.0,106130.0,0.93270551]
[1749406108870,0.82936213,106140.0,106130.0,0.93270551]
[1749406109066,0.72944213,106140.0,106130.0,0.93270551]
[1749406109369,0.82936213,106140.0,106130.0,0.93270551]
[1749406109772,1.12962564,106140.0,106130.0,0.93270551]
[1749406112875,1.12962564,106140.0,106130.0,0.96099551]
[1749406116175,1.12962564,106140.0,106130.0,0.6670307]
[1749406116677,1.16002564,106140.0,106130.0,0.6670307]
[1749406118176,1.16002564,106140.0,106130.0,0.87283046]
[1749406118582,1.16002564,106140.0,106130.0,0.6670307]
[1749406118782,1.19062564,106140.0,106130.0,0.6670307]
[1749406119382,1.19062564,106140.0,106130.0,0.87284387]
[1749406119586,1.19062564,106140.0,106130.0,0.6670307]
[1749406121278,1.22062564,106140.0,106130.0,0.6670307]
[1749406121783,1.22062564,106140.0,106130.0,0.96099551]
[1749406122885,1.22062564,106140.0,106130.0,0.89729551]
[1749406123682,0.92036213,106140.0,106130.0,0.89729551]
[1749406123883,1.22062564,106140.0,106130.0,0.89729551]
[1749406124386,1.22062564,106140.0,106130.0,0.93497551]
[1749406133792,1.22062564,106140.0,106130.0,1.1409724]
[1749406134489,1.22062564,106140.0,106130.0,0.84700759]
[1749406141699,1.22062564,106140.0,106130.0,0.6410107]
[1749406142291,1.22062564,106140.0,106130.0,0.93497551]
[1749406143092,0.85982564,106140.0,106130.0,0.93497551]
[1749406143299,1.22062564,106140.0,106130.0,0.93497551]
[1749406143499,1.22062564,106140.0,106130.0,0.75485428]
[1749406143799,1.22062564,106140.0,106130.0,0.93497551]
[1749406144901,1.04050441,106140.0,106130.0,0.93497551]
[1749406145108,1.22062564,106140.0,106130.0,0.93497551]
[1749406148098,1.22054564,106140.0,106130.0,0.93497551]
[1749406148401,1.22054564,106140.0,106130.0,0.99527551]
[1749406148602,0.2883609,106140.0,106130.0,1.53619674]
[1749406148802,0.2883609,106140.0,106130.0,1.35607551]
[1749406149306,0.2883609,106140.0,106130.0,1.0621107]
[1749406149501,0.2881609,106140.0,106130.0,1.0621107]
[1749406149704,0.2883609,106140.0,106130.0,1.0621107]
[1749406150597,0.2883609,106140.0,106130.0,1.3590107]
[1749406152605,0.2883609,106140.0,106130.0,1.65311482]
[1749406153106,0.1885209,106140.0,106130.0,1.65311482]
[1749406163005,0.1885209,106140.0,106130.0,1.3590107]
[1749406163207,0.0002,106140.0,106130.0,1.3590107]
[1749406163407,0.1885209,106140.0,106130.0,1.3590107]
[1749406163911,0.1885209,106140.0,106130.0,1.73905333]
[1749406166313,0.1883209,106140.0,106130.0,1.88029893]
[1749406166909,0.2819059,106150.0,106140.0,0.1883209]
[1749406167109,1.36213064,106150.0,106140.0,1.00621706]
[1749406167310,1.36213064,106150.0,106140.0,1.18633829]
[1749406167610,1.36233064,106150.0,106140.0,1.28054903]
[1749406168219,1.36333064,106150.0,106140.0,1.28054903]
[1749406168421,1.08960941,106150.0,106140.0,1.82147026]
[1749406168919,1.08940941,106150.0,106140.0,1.82147026]
[1749406169121,0.98976941,106150.0,106140.0,2.11837026]
[1749406169321,0.001,106150.0,106140.0,2.11837026]
[1749406169518,0.8052667,106160.0,106150.0,0.1883031]
[1749406169725,1.70537021,106160.0,106150.0,0.39942433]
[1749406169928,1.88549144,106160.0,106150.0,0.39942433]
[1749406170116,1.78585144,106160.0,106150.0,0.49363507]
[1749406170321,1.88569144,106160.0,106150.0,0.53131507]
[1749406170521,1.88569144,106160.0,106150.0,0.82527123]
[1749406171123,1.88569144,106160.0,106150.0,0.82627123]
[1749406171427,1.88569144,106160.0,106150.0,0.53231507]
[1749406171821,2.06581267,106160.0,106150.0,0.50131517]
[1749406172529,2.06581267,106160.0,106150.0,0.32119394]
[1749406173020,2.06581267,106160.0,106150.0,0.33109953]
[1749406173221,2.06581267,106160.0,106150.0,0.51122076]
[1749406174331,2.06581267,106160.0,106150.0,0.80812076]
[1749406174725,1.88569144,106160.0,106150.0,0.80812076]
[1749406175827,1.88569144,106160.0,106150.0,0.60991197]
[1749406176129,2.42661267,106160.0,106150.0,0.97533613]
[1749406176325,2.42661267,106160.0,106150.0,0.54517613]
[1749406176530,2.85677267,106160.0,106150.0,0.54517613]
[1749406176830,3.0368939,106160.0,106150.0,0.33962878]
[1749406177027,2.87549142,106160.0,106150.0,0.33862878]
[1749406177230,2.87649142,106160.0,106150.0,0.33862878]
[1749406177826,2.87849142,106160.0,106150.0,0.33862878]
[1749406179024,2.87749142,106160.0,106150.0,0.33862878]
[1749406179230,2.87949142,106160.0,106150.0,0.33862878]
[1749406180232,2.87949142,106160.0,106150.0,0.04172878]
[1749406182334,2.87949142,106160.0,106150.0,0.24727613]
[1749406186540,2.87949142,106160.0,106150.0,0.27556613]
[1749406191543,3.24029142,106160.0,106150.0,0.27556613]
[1749406195949,2.71029142,106160.0,106150.0,0.27556613]
[1749406196243,3.24021142,106160.0,106150.0,0.27556613]
[1749406199544,2.74021142,106160.0,106150.0,0.27556613]
[1749406199849,3.24021142,106160.0,106150.0,0.27556613]
[1749406202444,2.71029142,106160.0,106150.0,0.27556613]
[1749406202648,3.24021142,106160.0,106150.0,0.27556613]
[1749406203751,2.71029142,106160.0,106150.0,0.27556613]
[1749406203951,3.24021142,106160.0,106150.0,0.27556613]
[1749406206647,2.93994791,106160.0,106150.0,0.27556613]
[1749406206951,3.24021142,106160.0,106150.0,0.27556613]
[1749406207655,2.51861142,106160.0,106150.0,0.27556613]
[1749406207856,3.24021142,106160.0,106150.0,0.27556613]
[1749406208058,2.51861142,106160.0,106150.0,0.27556613]
[1749406208250,3.24021142,106160.0,106150.0,0.27556613]
[1749406208555,2.71029142,106160.0,106150.0,0.27556613]
[1749406208754,3.24021142,106160.0,106150.0,0.27556613]
[1749406208959,2.53017019,106160.0,106150.0,0.30556613]
[1749406209160,2.43477019,106160.0,106150.0,0.52396933]
[1749406209359,2.96469019,106160.0,106150.0,0.36686613]
[1749406210361,2.96269019,106160.0,106150.0,0.36686613]
[1749406210766,2.96069019,106160.0,106150.0,0.36686613]
[1749406210958,2.96169019,106160.0,106150.0,0.36686613]
[1749406212764,1.49060896,106160.0,106150.0,0.73529056]
[1749406212963,1.67053019,106160.0,106150.0,0.73529056]
[1749406213165,1.67073019,106160.0,106150.0,0.73529056]
[1749406213366,1.67073019,106160.0,106150.0,0.54698736]
[1749406213960,1.67073019,106160.0,106150.0,0.36686613]
[1749406214154,1.67073019,106160.0,106150.0,0.16131878]
[1749406214366,1.67073019,106160.0,106150.0,0.36720779]
[1749406220872,1.30993019,106160.0,106150.0,0.36720779]
[1749406221065,1.67073019,106160.0,106150.0,0.36720779]
[1749406227069,1.67073019,106160.0,106150.0,0.54732902]
[1749406227070,1.49060896,106160.0,106150.0,0.54732902]
[1749406227377,1.67073019,106160.0,106150.0,0.36720779]
[1749406228378,1.67073019,106160.0,106150.0,0.37668767]
[1749406228876,1.70313019,106160.0,106150.0,0.37668767]
[1749406229177,1.70313019,106160.0,106150.0,0.80680767]
[1749406229979,1.70313019,106160.0,106150.0,0.9869289]
[1749406230375,1.70313019,106160.0,106150.0,0.80680767]
[1749406230684,1.73313019,106160.0,106150.0,0.9869289]
[1749406231478,1.73313019,106160.0,106150.0,0.77156001]
[1749406232180,1.73313019,106160.0,106150.0,0.97744902]
[1749406233274,1.76473019,106160.0,106150.0,0.97744902]
[1749406233670,1.40393019,106160.0,106150.0,0.97744902]
[1749406233880,1.76473019,106160.0,106150.0,0.97744902]
[1749406236586,1.40393019,106160.0,106150.0,0.97744902]
[1749406236788,1.76473019,106160.0,106150.0,0.97744902]
[1749406237387,1.76473019,106160.0,106150.0,0.98721582]
[1749406237581,1.76473019,106160.0,106150.0,0.78132681]
[1749406237783,1.40393019,106160.0,106150.0,0.77156001]
[1749406237983,1.76473019,106160.0,106150.0,0.77156001]
[1749406238183,1.76473019,106160.0,106150.0,0.97746825]
[1749406238791,1.76473019,106160.0,106150.0,0.77156001]
[1749406240587,1.40393019,106160.0,106150.0,0.77156001]
[1749406240785,1.33745019,106160.0,106150.0,0.77156001]
[1749406241986,1.33745019,106160.0,106150.0,0.781289]
[1749406242185,1.15732896,106160.0,106150.0,0.781289]
[1749406242386,1.33745019,106160.0,106150.0,0.781289]
[1749406245788,1.33745019,106160.0,106150.0,0.77156001]
[1749406246488,1.33745019,106160.0,106150.0,0.78114662]
[1749406249996,1.15732896,106160.0,106150.0,0.78114662]
[1749406250300,1.33745019,106160.0,106150.0,0.60102539]
[1749406251094,0.97665019,106160.0,106150.0,0.60102539]
[1749406251295,1.33745019,106160.0,106150.0,0.60102539]
[1749406252094,0.97665019,106160.0,106150.0,0.60102539]
[1749406252287,1.33745019,106160.0,106150.0,0.60102539]
[1749406254691,1.03718668,106160.0,106150.0,0.60102539]
[1749406254895,1.33745019,106160.0,106150.0,0.60102539]
[1749406256097,1.15732896,106160.0,106150.0,0.60102539]
[1749406256296,1.33745019,106160.0,106150.0,0.60102539]
[1749406256986,1.33745019,106160.0,106150.0,0.59143878]
[1749406257900,0.97665019,106160.0,106150.0,0.59143878]
[1749406258101,1.33745019,106160.0,106150.0,0.59143878]
[1749406258901,0.97665019,106160.0,106150.0,0.59143878]
[1749406259201,1.33745019,106160.0,106150.0,0.59143878]
[1749406260000,1.33745019,106160.0,106150.0,0.77156001]
[1749406261301,1.51757142,106160.0,106150.0,0.77156001]
[1749406261700,1.33745019,106160.0,106150.0,0.77156001]
[1749406267803,1.33745019,106160.0,106150.0,0.95986321]
[1749406268203,1.33745019,106160.0,106150.0,0.77156001]
[1749406269303,1.23769019,106160.0,106150.0,0.77156001]
[1749406269505,1.33741019,106160.0,106150.0,0.77156001]
[1749406271207,1.23769019,106160.0,106150.0,0.77156001]
[1749406271402,1.33741019,106160.0,106150.0,0.77156001]
[1749406271600,1.23769019,106160.0,106150.0,0.95986321]
[1749406271797,0.94501019,106160.0,106150.0,1.05406508]
[1749406272004,0.94481019,106160.0,106150.0,1.05406508]
[1749406272205,0.94501019,106160.0,106150.0,1.05406508]
[1749406272509,0.88261019,106160.0,106150.0,1.05406508]
[1749406272708,0.40222545,106160.0,106150.0,1.260006]
[1749406273008,0.40202545,106160.0,106150.0,1.05406508]
[1749406273303,0.40222545,106160.0,106150.0,1.05406508]
[1749406273708,0.30250545,106160.0,106150.0,1.05406508]
[1749406273897,0.40102545,106160.0,106150.0,1.05406508]
[1749406274104,0.40122545,106160.0,106150.0,1.05406508]
[1749406274704,0.40122545,106160.0,106150.0,1.34802124]
[1749406274905,0.40122545,106160.0,106150.0,1.64492124]
[1749406275106,0.40122545,106160.0,106150.0,1.64592124]
[1749406275507,0.30150545,106160.0,106150.0,1.64592124]
[1749406275706,0.40122545,106160.0,106150.0,1.64592124]
[1749406276705,0.40122545,106160.0,106150.0,1.46580001]
[1749406276912,0.40122545,106160.0,106150.0,1.64592124]
[1749406277112,0.58134668,106160.0,106150.0,1.64592124]
[1749406282209,0.58134668,106160.0,106150.0,0.93619804]
[1749406282514,0.97511019,106160.0,106150.0,1.55454184]
[1749406282919,0.97511019,106160.0,106150.0,1.64894184]
[1749406283108,0.94491019,106160.0,106150.0,1.35498568]
[1749406284414,0.76478896,106160.0,106150.0,1.35498568]
[1749406285311,0.70148896,106160.0,106150.0,1.35498568]
[1749406290713,0.60176896,106160.0,106150.0,1.35498568]
[1749406290911,0.65421406,106160.0,106150.0,1.35498568]
[1749406291111,0.55469406,106160.0,106150.0,1.35498568]
[1749406291314,0.65441406,106160.0,106150.0,1.35498568]
[1749406291513,0.65441406,106160.0,106150.0,1.64894184]
[1749406295722,0.65441406,106160.0,106150.0,2.00974184]
[1749406299121,0.3354318,106160.0,106150.0,2.00974184]
[1749406299928,0.2357118,106160.0,106150.0,2.00974184]
[1749406300130,0.3353918,106160.0,106150.0,2.00974184]
[1749406301733,0.2357118,106160.0,106150.0,2.00974184]
[1749406301926,0.3353918,106160.0,106150.0,2.00974184]
[1749406304430,0.3353918,106160.0,106150.0,1.64894184]
[1749406304633,0.3353918,106160.0,106150.0,2.00974184]
[1749406308223,0.3353918,106160.0,106150.0,1.64894184]
[1749406308424,0.3353918,106160.0,106150.0,2.00974184]
[1749406311637,0.3353918,106160.0,106150.0,1.64894184]
[1749406311934,0.3353918,106160.0,106150.0,2.00974184]
[1749406314437,0.2357118,106160.0,106150.0,2.00974184]
[1749406314738,0.3353918,106160.0,106150.0,2.00974184]
[1749406314938,0.3351918,106160.0,106150.0,2.00974184]
[1749406315139,0.3353918,106160.0,106150.0,2.00974184]
[1749406317737,0.63565531,106160.0,106150.0,2.00974184]
[1749406318939,0.63565531,106160.0,106150.0,1.64894184]
[1749406319243,0.63565531,106160.0,106150.0,2.00974184]
[1749406319742,0.63565531,106160.0,106150.0,1.64894184]
[1749406319934,0.63565531,106160.0,106150.0,2.00974184]
[1749406321632,0.2879341,106180.0,106170.0,0.1882684]
[1749406321943,0.58819761,106180.0,106170.0,1.45600963]
[1749406322232,0.2881341,106180.0,106170.0,1.6421115]
[1749406322825,0.0002,106180.0,106170.0,1.82223273]
[1749406323032,0.7076109,106190.0,106180.0,0.1882507]
[1749406323235,1.04325441,106190.0,106180.0,0.61059316]
[1749406323436,1.04325441,106190.0,106180.0,0.90454932]
[1749406323631,1.04345441,106190.0,106180.0,0.99873344]
[1749406323831,0.7431909,106190.0,106180.0,0.99873344]
[1749406324732,0.0003416,106190.0,106180.0,1.53965467]
[1749406324933,0.5401302,106210.0,106180.0,1.35140397]
[1749406325142,1.63965511,106210.0,106200.0,0.36833643]
[1749406325636,1.23200291,106210.0,106200.0,0.75401085]
[1749406325847,0.73180291,106210.0,106200.0,0.93826611]
[1749406326138,0.0012,106210.0,106200.0,1.13117292]
[1749406326328,0.001,106210.0,106200.0,1.42512908]
[1749406326532,0.0052,106210.0,106200.0,1.42512908]
[1749406326935,0.005,106210.0,106200.0,1.42512908]
[1749406327134,0.0052,106210.0,106200.0,1.06488662]
[1749406327338,0.0052,106210.0,106200.0,1.31408357]
[1749406327738,0.0052,106210.0,106200.0,1.02012741]
[1749406327940,0.1963975,106210.0,106200.0,0.78044047]
[1749406328142,0.0082,106210.0,106200.0,1.02012741]
[1749406328842,0.0082,106210.0,106200.0,1.09605399]
[1749406329041,0.1963975,106210.0,106200.0,1.09605399]
[1749406329447,0.0082,106210.0,106200.0,1.30053771]
[1749406329749,0.0082,106210.0,106200.0,1.09605399]
[1749406330442,0.0082,106210.0,106200.0,1.30040352]
[1749406331732,0.0082,106210.0,106200.0,1.06071658]
[1749406332037,0.0082,106210.0,106200.0,1.30040352]
[1749406332844,0.0082,106210.0,106200.0,1.06071658]
[1749406333045,0.0082,106210.0,106200.0,1.30040352]
[1749406334042,0.0082,106210.0,106200.0,1.59730352]
[1749406334245,0.0082,106210.0,106200.0,1.83699046]
[1749406334443,0.0082,106210.0,106200.0,1.59730352]
[1749406334643,0.0082,106210.0,106200.0,1.69146352]
[1749406335139,0.0082,106210.0,106200.0,1.39456352]
[1749406335537,0.0082,106210.0,106200.0,1.33593515]
[1749406336944,0.1963975,106210.0,106200.0,1.33593515]
[1749406337952,0.1963975,106210.0,106200.0,1.09624821]
[1749406338249,0.1963975,106210.0,106200.0,1.33593515]
[1749406338753,0.1963975,106210.0,106200.0,1.24177515]
[1749406339648,0.20044628,106210.0,106200.0,1.24177515]
[1749406339834,0.20044628,106210.0,106200.0,1.53169399]
[1749406340639,0.20044628,106210.0,106200.0,1.09605399]
[1749406340840,0.20044628,106210.0,106200.0,1.53161399]
[1749406341349,0.20044628,106210.0,106200.0,1.29184705]
[1749406341553,0.20044628,106210.0,106200.0,1.53153399]
[1749406341746,0.29294628,106210.0,106200.0,1.50061399]
[1749406343448,0.29294628,106210.0,106200.0,1.26092705]
[1749406343649,0.29294628,106210.0,106200.0,1.50061399]
[1749406343947,0.29294628,106210.0,106200.0,1.13981399]
[1749406344252,0.29294628,106210.0,106200.0,1.50061399]
[1749406345953,0.29294628,106210.0,106200.0,1.79751399]
[1749406346653,0.29294628,106210.0,106200.0,1.94323515]
[1749406347050,0.29294628,106210.0,106200.0,1.79751399]
[1749406347246,0.29294628,106210.0,106200.0,2.00186352]
[1749406348741,0.29294628,106210.0,106200.0,1.79751399]
[1749406348946,0.28894628,106210.0,106200.0,1.79751399]
[1749406349144,0.28994628,106210.0,106200.0,1.79751399]
[1749406349453,0.28594628,106210.0,106200.0,2.21135613]
[1749406349645,0.28694628,106210.0,106200.0,2.21135613]
[1749406350454,0.28694628,106210.0,106200.0,2.03156967]
[1749406353155,0.28694628,106210.0,106200.0,2.21135613]
[1749406353354,0.28694628,106210.0,106200.0,2.03156967]
[1749406354059,0.28694628,106210.0,106200.0,2.21135613]
[1749406354857,0.28694628,106210.0,106200.0,2.03156967]
[1749406355059,0.28694628,106210.0,106200.0,1.73761351]
[1749406355358,0.05609961,106210.0,106200.0,2.11765614]
[1749406355562,0.24429711,106210.0,106200.0,2.11765614]
[1749406355960,0.24834589,106210.0,106200.0,2.11765614]
[1749406356863,0.24834589,106210.0,106200.0,2.11701614]
[1749406359869,0.06014839,106210.0,106200.0,2.11701614]
[1749406360571,0.06014839,106210.0,106200.0,2.14881614]
[1749406360872,0.06014839,106210.0,106200.0,2.3286026]
[1749406362573,0.06014839,106210.0,106200.0,1.96902968]
[1749406362763,0.06014839,106210.0,106200.0,2.3286026]
[1749406363374,0.01305272,106210.0,106200.0,2.3286026]
[1749406363672,0.00604878,106210.0,106200.0,2.3286026]
[1749406364775,0.30631229,106210.0,106200.0,2.3286026]
[1749406369177,0.30631229,106210.0,106200.0,1.96902968]
[1749406369379,0.30631229,106210.0,106200.0,2.14881614]
[1749406371187,0.30631229,106210.0,106200.0,1.94855997]
[1749406371489,0.07107772,106210.0,106200.0,1.94855997]
[1749406372179,0.0751265,106210.0,106200.0,1.94855997]
[1749406372673,0.0751265,106210.0,106200.0,2.33078426]
[1749406373491,0.0751265,106210.0,106200.0,1.94855997]
[1749406375488,0.0751265,106210.0,106200.0,1.98025997]
[1749406379690,0.00404878,106210.0,106200.0,1.98025997]
[1749406379887,0.07201517,106210.0,106200.0,1.98025997]
[1749406384284,0.07201517,106210.0,106200.0,2.27428947]
[1749406384896,0.07201517,106210.0,106200.0,2.09450301]
[1749406386196,0.07201517,106210.0,106200.0,2.09266301]
[1749406386400,0.93999913,106210.0,106200.0,1.04228776]
[1749406386693,1.03489913,106210.0,106200.0,1.07494249]
[1749406386900,1.03489913,106210.0,106200.0,1.23713774]
[1749406387100,1.03489913,106210.0,106200.0,0.94310824]
[1749406387597,1.03489913,106210.0,106200.0,0.76332178]
[1749406390498,1.03489913,106210.0,106200.0,0.94310824]
[1749406393597,1.03489913,106210.0,106200.0,1.23713774]
[1749406395604,1.03489913,106210.0,106200.0,1.05735128]
[1749406404306,0.53489913,106210.0,106200.0,1.05735128]
[1749406404506,1.03489913,106210.0,106200.0,1.05735128]
[1749406406115,1.03489913,106210.0,106200.0,1.08795128]
[1749406407007,0.85511267,106210.0,106200.0,1.11985128]
[1749406407207,1.03489913,106210.0,106200.0,1.29963774]
[1749406407407,1.03489913,106210.0,106200.0,1.33229774]
[1749406410516,1.03489913,106210.0,106200.0,1.15251128]
[1749406410716,1.03489913,106210.0,106200.0,1.33229774]
[1749406415017,1.00379913,106210.0,106200.0,1.33229774]
[1749406415213,0.97059913,106210.0,106200.0,1.33229774]
[1749406416415,0.97059913,106210.0,106200.0,0.89929774]
[1749406416721,0.97059913,106210.0,106200.0,1.33225774]
[1749406417421,0.97059913,106210.0,106200.0,1.15247128]
[1749406419827,0.97059913,106210.0,106200.0,0.85844178]
[1749406420826,0.97059913,106210.0,106200.0,0.85820178]
[1749406423125,0.97059913,106210.0,106200.0,1.24044014]
[1749406424324,0.79081267,106210.0,106200.0,1.4202266]
[1749406424528,0.86149267,106210.0,106200.0,1.4202266]
[1749406424730,1.04127913,106210.0,106200.0,1.4202266]
[1749406427819,1.04127913,106210.0,106200.0,1.4201866]
[1749406428021,0.76021267,106210.0,106200.0,1.4201866]
[1749406428318,0.86149267,106210.0,106200.0,1.59997306]
[1749406429328,1.04127913,106210.0,106200.0,1.4201866]
[1749406433432,1.04127913,106210.0,106200.0,0.9875066]
[1749406433622,1.04127913,106210.0,106200.0,1.4212266]
[1749406437432,1.04127913,106210.0,106200.0,1.7820266]
[1749406439935,0.86149267,106210.0,106200.0,1.7820266]
[1749406440132,1.04127913,106210.0,106200.0,1.7820266]
[1749406441441,0.10241745,106210.0,106200.0,2.35000852]
[1749406441739,0.18933495,106210.0,106200.0,2.35000852]
[1749406441932,0.2894775,106210.0,106200.0,2.49116162]
[1749406442232,0.00424878,106210.0,106200.0,2.19712368]
[1749406442437,0.38371,106220.0,106210.0,0.1881975]
[1749406442636,0.38371,106220.0,106210.0,1.12478396]
[1749406442838,0.38371,106220.0,106210.0,1.33049273]
[1749406443137,0.56349646,106220.0,106210.0,1.42465025]
[1749406443636,0.56369646,106220.0,106210.0,1.42465025]
[1749406443939,0.56569646,106220.0,106210.0,1.42465025]
[1749406444836,0.56769646,106220.0,106210.0,1.42465025]
[1749406445136,0.56769646,106220.0,106210.0,1.46231025]
[1749406445637,0.56769646,106220.0,106210.0,1.49059025]
[1749406446741,0.63877418,106220.0,106210.0,1.49059025]
[1749406447137,0.53749418,106220.0,106210.0,1.49059025]
[1749406447438,0.63901418,106220.0,106210.0,1.49059025]
[1749406447837,0.63901418,106220.0,106210.0,1.28488148]
[1749406451642,0.63901418,106220.0,106210.0,1.49041612]
[1749406452243,0.63901418,106220.0,106210.0,1.57885106]
[1749406453241,0.63901418,106220.0,106210.0,1.21805106]
[1749406453442,0.63901418,106220.0,106210.0,1.57885106]
[1749406453943,0.63901418,106220.0,106210.0,1.78437751]
[1749406454535,0.63901418,106220.0,106210.0,1.49040793]
[1749406454729,0.45922772,106220.0,106210.0,1.49040793]
[1749406454936,0.63901418,106220.0,106210.0,1.49040793]
[1749406455143,0.63901418,106220.0,106210.0,1.12960793]
[1749406460546,0.64306296,106220.0,106210.0,1.12960793]
[1749406461444,0.64306296,106220.0,106210.0,1.42357751]
[1749406461651,0.64306296,106220.0,106210.0,1.21805106]
[1749406462549,0.64306296,106220.0,106210.0,1.0382646]
[1749406462746,0.64306296,106220.0,106210.0,1.21805106]
[1749406465951,0.4632765,106220.0,106210.0,1.21805106]
[1749406466252,0.64306296,106220.0,106210.0,1.21805106]
[1749406468056,0.64306296,106220.0,106210.0,1.0382646]
[1749406468352,0.64306296,106220.0,106210.0,1.2832271]
[1749406468353,0.82284942,106220.0,106210.0,1.2832271]
[1749406468541,0.64306296,106220.0,106210.0,1.4714246]
[1749406469054,0.64306296,106220.0,106210.0,1.65121106]
[1749406470158,0.64306296,106220.0,106210.0,1.35431106]
[1749406476172,0.64306296,106220.0,106210.0,1.65121106]
[1749406480174,0.64306296,106220.0,106210.0,1.85701266]
[1749406480667,0.64306296,106220.0,106210.0,1.56304308]
[1749406484073,0.64306296,106220.0,106210.0,1.92384308]
[1749406486277,0.4632765,106220.0,106210.0,1.92384308]
[1749406486570,0.3691827,106220.0,106210.0,1.92384308]
[1749406486975,0.3689827,106220.0,106210.0,1.92384308]
[1749406487274,0.54896916,106220.0,106210.0,1.92384308]
[1749406487963,0.54896916,106220.0,106210.0,1.62694308]
[1749406488576,0.54896916,106220.0,106210.0,1.80337984]
[1749406488577,0.3691827,106220.0,106210.0,1.80337984]
[1749406489575,0.3691827,106220.0,106210.0,1.42114148]
[1749406492578,0.3691827,106220.0,106210.0,1.7151286]
[1749406493475,0.3691827,106220.0,106210.0,1.53534214]
[1749406493679,0.3691827,106220.0,106210.0,1.7151286]
[1749406493883,0.3691827,106220.0,106210.0,2.0120286]
[1749406494077,0.54896916,106220.0,106210.0,2.0120286]
[1749406494985,0.3691827,106220.0,106210.0,2.0120286]
[1749406495280,0.3691827,106220.0,106210.0,1.71804148]
[1749406496283,0.3691827,106220.0,106210.0,2.01201771]
[1749406496969,0.3691827,106220.0,106210.0,1.35724148]
[1749406497178,0.3691827,106220.0,106210.0,1.71804148]
[1749406497681,0.3691827,106220.0,106210.0,1.35724148]
[1749406497883,0.3691827,106220.0,106210.0,1.71804148]
[1749406498984,0.54896916,106220.0,106210.0,1.53825502]
[1749406499175,0.54896916,106220.0,106210.0,1.71804148]
[1749406499374,0.1809881,106220.0,106210.0,1.71804148]
[1749406499575,0.3691679,106220.0,106210.0,1.71804148]
[1749406500374,0.54895436,106220.0,106210.0,1.71804148]
[1749406500681,0.00839038,106220.0,106210.0,1.71804148]
[1749406500883,0.00176897,106220.0,106210.0,1.71804148]
[1749406501081,0.18994877,106220.0,106210.0,1.71804148]
[1749406501383,0.18994877,106220.0,106210.0,2.10027984]
[1749406501586,0.18974877,106220.0,106210.0,2.10027984]
[1749406501883,0.18994877,106220.0,106210.0,2.10027984]
[1749406505383,0.00176897,106220.0,106210.0,2.10027984]
[1749406505590,0.18994877,106220.0,106210.0,2.10027984]
[1749406505886,0.18994877,106220.0,106210.0,1.71804148]
[1749406508792,0.18994877,106220.0,106210.0,1.35724148]
[1749406508983,0.18994877,106220.0,106210.0,1.71804148]
[1749406512192,0.18994877,106220.0,106210.0,1.35724148]
[1749406512397,0.18994877,106220.0,106210.0,1.71804148]
[1749406513092,0.18994877,106220.0,106210.0,1.35724148]
[1749406513297,0.18994877,106220.0,106210.0,1.71804148]
[1749406513792,0.18994877,106220.0,106210.0,1.35724148]
[1749406513989,0.18994877,106220.0,106210.0,1.71804148]
[1749406514390,0.18994877,106220.0,106210.0,1.35724148]
[1749406514594,0.18994877,106220.0,106210.0,1.71804148]
[1749406515301,0.18994877,106220.0,106210.0,2.10027984]
[1749406515690,0.1881798,106220.0,106210.0,2.24141974]
[1749406516097,0.1881798,106220.0,106210.0,1.88061974]
[1749406516398,0.19222858,106220.0,106210.0,1.88061974]
[1749406516592,0.19222858,106220.0,106210.0,2.24141974]
[1749406519597,0.19222858,106220.0,106210.0,2.06163328]
[1749406519798,0.2633063,106220.0,106210.0,2.24141974]
[1749406520099,0.2633063,106220.0,106210.0,2.06163328]
[1749406520299,0.2633063,106220.0,106210.0,2.24141974]
[1749406524700,0.2633063,106220.0,106210.0,1.85918138]
[1749406534012,0.24423778,106220.0,106210.0,1.85918138]
[1749406534210,0.24423778,106220.0,106210.0,2.24141974]